[Event "Late-Titled-Tuesday-Blitz-January-23-2024"]
[Site "Chess.com"]
[Date "2024.01.23"]
[Round "10"]
[White "Goryachkina"]
[Black "Byniolus"]
[Result "0-1"]
[WhiteElo "2686"]
[BlackElo "2852"]
[TimeControl "180+1"]
[EndTime "15:53:17 PST"]
[Termination "Byniolus won on time"]

1. e4 {[%clk 0:02:59.8]} 1... d6 {[%clk 0:03:00.5]} 2. d4 {[%clk 0:02:58.7]}
2... Nf6 {[%clk 0:03:01.4]} 3. Nc3 {[%clk 0:02:58.3]} 3... c6 {[%clk 0:03:02]}
4. Nf3 {[%clk 0:02:57.4]} 4... Bg4 {[%clk 0:03:02]} 5. h3 {[%clk 0:02:51.2]}
5... Bh5 {[%clk 0:03:02.3]} 6. Bd3 {[%clk 0:02:49.2]} 6... e6 {[%clk 0:03:02.1]}
7. g4 {[%clk 0:02:46.2]} 7... Bg6 {[%clk 0:03:02]} 8. Be3 {[%clk 0:02:44.4]}
8... d5 {[%clk 0:03:01.9]} 9. e5 {[%clk 0:02:36.9]} 9... Nfd7 {[%clk 0:03:02]}
10. h4 {[%clk 0:02:24.6]} 10... c5 {[%clk 0:03:01.3]} 11. h5 {[%clk 0:02:21.8]}
11... Bxd3 {[%clk 0:03:00.6]} 12. Qxd3 {[%clk 0:02:22.1]} 12... Nc6 {[%clk
0:02:58.6]} 13. O-O-O {[%clk 0:02:20.9]} 13... cxd4 {[%clk 0:02:56.3]} 14. Bxd4
{[%clk 0:02:20.6]} 14... Nxd4 {[%clk 0:02:55]} 15. Qxd4 {[%clk 0:02:11.4]} 15...
Bc5 {[%clk 0:02:54.8]} 16. Qf4 {[%clk 0:02:10.9]} 16... h6 {[%clk 0:02:37]} 17.
Kb1 {[%clk 0:02:09]} 17... Qb6 {[%clk 0:02:24.5]} 18. Nd4 {[%clk 0:01:54.8]}
18... Bxd4 {[%clk 0:02:09.7]} 19. Rxd4 {[%clk 0:01:54.4]} 19... Rc8 {[%clk
0:02:09.9]} 20. Rh3 {[%clk 0:01:39]} 20... a6 {[%clk 0:01:58.4]} 21. a3 {[%clk
0:01:36]} 21... Qc7 {[%clk 0:01:49.7]} 22. Re3 {[%clk 0:01:32]} 22... Nb6 {[%clk
0:01:49.2]} 23. b3 {[%clk 0:01:24.9]} 23... Qe7 {[%clk 0:01:43.1]} 24. Kb2
{[%clk 0:01:21.4]} 24... O-O {[%clk 0:01:40.3]} 25. Rg3 {[%clk 0:01:19.5]} 25...
Qg5 {[%clk 0:01:23.3]} 26. Qxg5 {[%clk 0:00:56.8]} 26... hxg5 {[%clk 0:01:24.2]}
27. f4 {[%clk 0:00:56.7]} 27... gxf4 {[%clk 0:01:20.1]} 28. Rxf4 {[%clk
0:00:57.1]} 28... Rc7 {[%clk 0:01:14.1]} 29. Ne2 {[%clk 0:00:54.1]} 29... Nd7
{[%clk 0:01:11.4]} 30. Re3 {[%clk 0:00:53]} 30... Rfc8 {[%clk 0:01:09.9]} 31.
Nd4 {[%clk 0:00:50.5]} 31... Nc5 {[%clk 0:01:07.7]} 32. g5 {[%clk 0:00:46]}
32... Ne4 {[%clk 0:00:38.1]} 33. g6 {[%clk 0:00:45.6]} 33... f6 {[%clk
0:00:38.7]} 34. exf6 {[%clk 0:00:32.3]} 34... gxf6 {[%clk 0:00:39.6]} 35. Re2
{[%clk 0:00:27.7]} 35... e5 {[%clk 0:00:30.5]} 36. Rfxe4 {[%clk 0:00:27]} 36...
dxe4 {[%clk 0:00:24.1]} 37. Nf5 {[%clk 0:00:27.2]} 37... Rd8 {[%clk 0:00:16.1]}
38. h6 {[%clk 0:00:24.9]} 38... e3 {[%clk 0:00:16.7]} 39. h7+ {[%clk 0:00:04.7]}
39... Kh8 {[%clk 0:00:16.7]} 40. Rxe3 {[%clk 0:00:03.5]} 40... Rd2 {[%clk
0:00:13.5]} 41. Rc3 {[%clk 0:00:03.7]} 41... Rxc3 {[%clk 0:00:12.1]} 42. Kxc3
{[%clk 0:00:04.6]} 42... Rg2 {[%clk 0:00:07.5]} 43. Ne7 {[%clk 0:00:04.9]} 43...
f5 {[%clk 0:00:05.7]} 44. Kd3 {[%clk 0:00:04.1]} 44... Rg3+ {[%clk 0:00:04.9]}
45. Ke2 {[%clk 0:00:03.5]} 45... f4 {[%clk 0:00:05.8]} 46. c4 {[%clk 0:00:03.1]}
46... e4 {[%clk 0:00:05.5]} 47. c5 {[%clk 0:00:02.9]} 47... Rxb3 {[%clk
0:00:03.3]} 48. Nf5 {[%clk 0:00:02]} 48... Rb2+ {[%clk 0:00:03.7]} 49. Kf1
{[%clk 0:00:01.8]} 49... e3 {[%clk 0:00:04.2]} 50. Nh6 {[%clk 0:00:01.9]} 50...
Rh2 {[%clk 0:00:03.1]} 51. Nf7+ {[%clk 0:00:01.9]} 51... Kg7 {[%clk 0:00:03.9]}
52. h8=Q+ {[%clk 0:00:02]} 52... Rxh8 {[%clk 0:00:03.9]} 53. Nxh8 {[%clk
0:00:02.5]} 53... Kxh8 {[%clk 0:00:04.8]} 0-1

[Event "Late-Titled-Tuesday-Blitz-January-23-2024"]
[Site "Chess.com"]
[Date "2024.01.23"]
[Round "10"]
[White "GoltsevDmitry2000"]
[Black "brm72"]
[Result "1-0"]
[WhiteElo "2828"]
[BlackElo "2678"]
[TimeControl "180+1"]
[EndTime "15:53:19 PST"]
[Termination "GoltsevDmitry2000 won by resignation"]

1. e4 {[%clk 0:03:00.3]} 1... c5 {[%clk 0:03:00.2]} 2. Nf3 {[%clk 0:02:59.4]}
2... Nc6 {[%clk 0:03:00.7]} 3. d4 {[%clk 0:02:59.8]} 3... cxd4 {[%clk
0:03:01.6]} 4. Nxd4 {[%clk 0:02:59.9]} 4... Nf6 {[%clk 0:03:02.2]} 5. Nc3 {[%clk
0:03:00.3]} 5... e6 {[%clk 0:03:02.9]} 6. Be2 {[%clk 0:03:00.2]} 6... Bc5 {[%clk
0:02:59.4]} 7. Nb3 {[%clk 0:02:59.6]} 7... Be7 {[%clk 0:02:58.8]} 8. O-O {[%clk
0:03:00]} 8... O-O {[%clk 0:02:59]} 9. Be3 {[%clk 0:02:58.7]} 9... b6 {[%clk
0:02:54.8]} 10. Qd2 {[%clk 0:02:57.2]} 10... Bb7 {[%clk 0:02:54.7]} 11. Rad1
{[%clk 0:02:57.5]} 11... d6 {[%clk 0:02:55.1]} 12. Bg5 {[%clk 0:02:54.2]} 12...
a6 {[%clk 0:02:48]} 13. Bxf6 {[%clk 0:02:53.5]} 13... Bxf6 {[%clk 0:02:41.7]}
14. Qxd6 {[%clk 0:02:52.4]} 14... Qc8 {[%clk 0:02:40.4]} 15. Na4 {[%clk
0:02:31.6]} 15... Bd8 {[%clk 0:02:31.2]} 16. Bf3 {[%clk 0:02:04.1]} 16... Bc7
{[%clk 0:02:29.9]} 17. Qd2 {[%clk 0:02:02.9]} 17... Ne5 {[%clk 0:02:27]} 18. Qe3
{[%clk 0:01:57.3]} 18... Qb8 {[%clk 0:02:10.9]} 19. Be2 {[%clk 0:01:46.6]} 19...
Bc6 {[%clk 0:02:06]} 20. Nc3 {[%clk 0:01:43.9]} 20... Ng6 {[%clk 0:02:00.5]} 21.
g3 {[%clk 0:01:42.4]} 21... b5 {[%clk 0:02:00.4]} 22. Nd4 {[%clk 0:01:37.5]}
22... Bb7 {[%clk 0:01:56.5]} 23. a3 {[%clk 0:01:37.7]} 23... Bb6 {[%clk
0:01:55.4]} 24. Qg5 {[%clk 0:01:30.2]} 24... h6 {[%clk 0:01:55.3]} 25. Qh5
{[%clk 0:01:25.6]} 25... Qe8 {[%clk 0:01:39.6]} 26. Nf3 {[%clk 0:01:12.8]} 26...
Rc8 {[%clk 0:01:31.8]} 27. Rd2 {[%clk 0:00:52.1]} 27... Qe7 {[%clk 0:01:28.5]}
28. Rfd1 {[%clk 0:00:50.7]} 28... Rc7 {[%clk 0:01:28.6]} 29. Bf1 {[%clk
0:00:40.6]} 29... Rfc8 {[%clk 0:01:23.9]} 30. Bg2 {[%clk 0:00:40.2]} 30... Bc6
{[%clk 0:01:12.2]} 31. Nd5 {[%clk 0:00:34.1]} 31... Bxd5 {[%clk 0:01:04.9]} 32.
exd5 {[%clk 0:00:34.1]} 32... Rxc2 {[%clk 0:01:05.2]} 33. dxe6 {[%clk
0:00:17.1]} 33... Qxe6 {[%clk 0:01:01.6]} 34. Bh3 {[%clk 0:00:16.9]} 34... Rxd2
{[%clk 0:00:47.3]} 35. Nxd2 {[%clk 0:00:15.1]} 35... Bxf2+ {[%clk 0:00:15.9]}
36. Kxf2 {[%clk 0:00:14.6]} 36... Qb6+ {[%clk 0:00:16.8]} 37. Kf1 {[%clk
0:00:10.5]} 37... Rd8 {[%clk 0:00:17.1]} 38. Qe2 {[%clk 0:00:08.9]} 38... Rd6
{[%clk 0:00:16.3]} 39. Ne4 {[%clk 0:00:07.7]} 39... Rc6 {[%clk 0:00:13.6]} 40.
Bg2 {[%clk 0:00:08]} 40... b4 {[%clk 0:00:10.8]} 41. Qf2 {[%clk 0:00:06.4]}
41... Qb5+ {[%clk 0:00:10.5]} 42. Kg1 {[%clk 0:00:06]} 42... bxa3 {[%clk
0:00:10.9]} 43. bxa3 {[%clk 0:00:06.7]} 43... Rc8 {[%clk 0:00:09.6]} 44. h4
{[%clk 0:00:06.8]} 44... Qb3 {[%clk 0:00:07.9]} 45. Rf1 {[%clk 0:00:06.4]} 45...
Ne5 {[%clk 0:00:07.9]} 46. Nd6 {[%clk 0:00:05.8]} 46... Rd8 {[%clk 0:00:05.8]}
47. Nf5 {[%clk 0:00:05.3]} 47... Rd3 {[%clk 0:00:04.6]} 48. Qf4 {[%clk
0:00:04.8]} 48... Ng6 {[%clk 0:00:04.2]} 49. Qf2 {[%clk 0:00:02.8]} 49... Qxa3
{[%clk 0:00:04.1]} 50. Be4 {[%clk 0:00:03.3]} 50... Rc3 {[%clk 0:00:03]} 51.
Nxh6+ {[%clk 0:00:03.6]} 51... Kh7 {[%clk 0:00:02.1]} 52. Nf5 {[%clk 0:00:01.6]}
52... Rb3 {[%clk 0:00:01.2]} 53. h5 {[%clk 0:00:02.3]} 53... Qc5 {[%clk
0:00:01.5]} 54. hxg6+ {[%clk 0:00:02.4]} 54... fxg6 {[%clk 0:00:02.4]} 55. Qxc5
{[%clk 0:00:02.6]} 55... gxf5 {[%clk 0:00:02.9]} 56. Qf2 {[%clk 0:00:03.5]}
56... fxe4 {[%clk 0:00:03.8]} 57. Kg2 {[%clk 0:00:04.1]} 57... e3 {[%clk
0:00:04.7]} 58. Rh1+ {[%clk 0:00:04.8]} 58... Kg6 {[%clk 0:00:04.3]} 59. Qc2+
{[%clk 0:00:05.3]} 1-0

[Event "Late-Titled-Tuesday-Blitz-January-23-2024"]
[Site "Chess.com"]
[Date "2024.01.23"]
[Round "10"]
[White "smotherhubbard"]
[Black "Jem"]
[Result "1-0"]
[WhiteElo "2342"]
[BlackElo "2168"]
[TimeControl "180+1"]
[EndTime "15:53:20 PST"]
[Termination "smotherhubbard won by checkmate"]

1. d4 {[%clk 0:03:00.9]} 1... Nf6 {[%clk 0:02:49.9]} 2. c4 {[%clk 0:02:58.2]}
2... g6 {[%clk 0:02:48.7]} 3. f3 {[%clk 0:02:56.6]} 3... Bg7 {[%clk 0:02:48.3]}
4. e4 {[%clk 0:02:57.2]} 4... O-O {[%clk 0:02:48.4]} 5. Be3 {[%clk 0:02:57.7]}
5... d6 {[%clk 0:02:48.5]} 6. Nc3 {[%clk 0:02:58.2]} 6... a6 {[%clk 0:02:42.8]}
7. Bd3 {[%clk 0:02:55.6]} 7... Nbd7 {[%clk 0:02:38.2]} 8. Nge2 {[%clk
0:02:54.9]} 8... c5 {[%clk 0:02:38.4]} 9. O-O {[%clk 0:02:53]} 9... cxd4 {[%clk
0:02:34.4]} 10. Nxd4 {[%clk 0:02:52.6]} 10... Nc5 {[%clk 0:02:34.2]} 11. Be2
{[%clk 0:02:42]} 11... Bd7 {[%clk 0:01:46.1]} 12. b4 {[%clk 0:02:15.9]} 12...
Ne6 {[%clk 0:01:44.5]} 13. Nxe6 {[%clk 0:02:15]} 13... Bxe6 {[%clk 0:01:41.9]}
14. Qb3 {[%clk 0:02:14.8]} 14... b5 {[%clk 0:01:38.6]} 15. Nd5 {[%clk 0:02:11]}
15... bxc4 {[%clk 0:01:32.7]} 16. Bxc4 {[%clk 0:02:06]} 16... Bxd5 {[%clk
0:01:30.5]} 17. exd5 {[%clk 0:02:05.7]} 17... a5 {[%clk 0:01:27.6]} 18. a3
{[%clk 0:01:49.7]} 18... Nd7 {[%clk 0:01:21.7]} 19. Rab1 {[%clk 0:01:44.1]}
19... axb4 {[%clk 0:01:20]} 20. axb4 {[%clk 0:01:43.2]} 20... Ne5 {[%clk
0:01:18.2]} 21. Be2 {[%clk 0:01:42.8]} 21... Qb8 {[%clk 0:01:13.2]} 22. Rfc1
{[%clk 0:01:36.8]} 22... Rc8 {[%clk 0:01:11.5]} 23. Rxc8+ {[%clk 0:01:36.2]}
23... Qxc8 {[%clk 0:01:11.7]} 24. b5 {[%clk 0:01:36.2]} 24... Nd7 {[%clk
0:01:08.5]} 25. b6 {[%clk 0:01:29.6]} 25... Qb7 {[%clk 0:01:04.1]} 26. Bb5
{[%clk 0:01:15.1]} 26... Nb8 {[%clk 0:00:38.8]} 27. Rc1 {[%clk 0:01:06.4]} 27...
Ra1 {[%clk 0:00:38.1]} 28. Rxa1 {[%clk 0:00:58.6]} 28... Bxa1 {[%clk 0:00:39]}
29. Qa4 {[%clk 0:00:54.1]} 29... Qxd5 {[%clk 0:00:23.3]} 30. Qa7 {[%clk
0:00:39.7]} 30... Qxb5 {[%clk 0:00:13.9]} 31. Qxb8+ {[%clk 0:00:36.1]} 31... Kg7
{[%clk 0:00:12.4]} 32. Qc7 {[%clk 0:00:26.7]} 32... Qe2 {[%clk 0:00:12.2]} 33.
Qc1 {[%clk 0:00:22.4]} 33... Bb2 {[%clk 0:00:10.5]} 34. Qd2 {[%clk 0:00:13]}
34... Qb5 {[%clk 0:00:10.2]} 35. h3 {[%clk 0:00:10.5]} 35... Bf6 {[%clk
0:00:05]} 36. Kh2 {[%clk 0:00:07.2]} 36... d5 {[%clk 0:00:04.4]} 37. Bd4 {[%clk
0:00:06.4]} 37... e5 {[%clk 0:00:03.5]} 38. Bf2 {[%clk 0:00:06.5]} 38... d4
{[%clk 0:00:03.8]} 39. f4 {[%clk 0:00:06.7]} 39... e4 {[%clk 0:00:03.8]} 40.
Bxd4 {[%clk 0:00:06.5]} 40... Bxd4 {[%clk 0:00:02.3]} 41. Qxd4+ {[%clk
0:00:07.4]} 41... f6 {[%clk 0:00:02.6]} 42. Qd7+ {[%clk 0:00:06.5]} 42... Kh6
{[%clk 0:00:02.9]} 43. b7 {[%clk 0:00:07]} 43... e3 {[%clk 0:00:02.7]} 44. b8=Q
{[%clk 0:00:06.2]} 44... Qxb8 {[%clk 0:00:02.2]} 45. Qg4 {[%clk 0:00:07.1]}
45... Kg7 {[%clk 0:00:02]} 46. h4 {[%clk 0:00:07.6]} 46... f5 {[%clk 0:00:02.1]}
47. Qg5 {[%clk 0:00:07.7]} 47... h6 {[%clk 0:00:02.1]} 48. Qe7+ {[%clk
0:00:07.5]} 48... Kg8 {[%clk 0:00:02.6]} 49. Qxe3 {[%clk 0:00:07.9]} 49... Qd6
{[%clk 0:00:02.3]} 50. Qe8+ {[%clk 0:00:07.7]} 50... Kg7 {[%clk 0:00:02.8]} 51.
g3 {[%clk 0:00:07.5]} 51... Kf6 {[%clk 0:00:03]} 52. h5 {[%clk 0:00:06.8]} 52...
g5 {[%clk 0:00:03.1]} 53. Qg6+ {[%clk 0:00:06.1]} 53... Ke7 {[%clk 0:00:03.3]}
54. Qxd6+ {[%clk 0:00:05.8]} 54... Kxd6 {[%clk 0:00:03.3]} 55. fxg5 {[%clk
0:00:06.7]} 55... hxg5 {[%clk 0:00:03.6]} 56. h6 {[%clk 0:00:07.3]} 56... Ke7
{[%clk 0:00:03.8]} 57. h7 {[%clk 0:00:07.7]} 57... Kf7 {[%clk 0:00:04.3]} 58.
h8=Q {[%clk 0:00:07.8]} 58... f4 {[%clk 0:00:05.2]} 59. gxf4 {[%clk 0:00:07.4]}
59... gxf4 {[%clk 0:00:06.1]} 60. Qe5 {[%clk 0:00:07.4]} 60... Kg6 {[%clk
0:00:06.3]} 61. Qxf4 {[%clk 0:00:07.7]} 61... Kg7 {[%clk 0:00:07.2]} 62. Kg3
{[%clk 0:00:08.1]} 62... Kh8 {[%clk 0:00:08.1]} 63. Kg4 {[%clk 0:00:08.6]} 63...
Kh7 {[%clk 0:00:09]} 64. Kg5 {[%clk 0:00:09.1]} 64... Kh8 {[%clk 0:00:09.9]} 65.
Qc7 {[%clk 0:00:08.8]} 65... Kg8 {[%clk 0:00:10.2]} 66. Kf6 {[%clk 0:00:09.3]}
66... Kf8 {[%clk 0:00:11.1]} 67. Qf7# {[%clk 0:00:09.3]} 1-0

[Event "Late-Titled-Tuesday-Blitz-January-23-2024"]
[Site "Chess.com"]
[Date "2024.01.23"]
[Round "10"]
[White "Jospem"]
[Black "ChristopherYoo"]
[Result "1-0"]
[WhiteElo "3097"]
[BlackElo "2982"]
[TimeControl "180+1"]
[EndTime "15:53:21 PST"]
[Termination "Jospem won by checkmate"]

1. e4 {[%clk 0:03:00.9]} 1... c5 {[%clk 0:02:59.6]} 2. Nf3 {[%clk 0:03:01.3]}
2... d6 {[%clk 0:02:59.9]} 3. c3 {[%clk 0:03:01.6]} 3... Nf6 {[%clk 0:02:59.7]}
4. h3 {[%clk 0:03:02.2]} 4... g6 {[%clk 0:02:58.7]} 5. Bd3 {[%clk 0:03:02.6]}
5... Bg7 {[%clk 0:02:58.6]} 6. Bc2 {[%clk 0:03:03.3]} 6... e5 {[%clk 0:02:58]}
7. O-O {[%clk 0:03:03.7]} 7... O-O {[%clk 0:02:57.7]} 8. d3 {[%clk 0:03:04.3]}
8... Nc6 {[%clk 0:02:57.2]} 9. Bg5 {[%clk 0:03:04.6]} 9... h6 {[%clk 0:02:57.2]}
10. Bxf6 {[%clk 0:03:05]} 10... Bxf6 {[%clk 0:02:53.9]} 11. Bb3 {[%clk
0:03:05.7]} 11... Bg7 {[%clk 0:02:50.8]} 12. Nbd2 {[%clk 0:03:05.5]} 12... Kh8
{[%clk 0:02:49.8]} 13. a3 {[%clk 0:03:01.8]} 13... f5 {[%clk 0:02:49.8]} 14. Bc4
{[%clk 0:03:02.1]} 14... g5 {[%clk 0:02:19.1]} 15. Nh2 {[%clk 0:02:44.8]} 15...
Ne7 {[%clk 0:02:05.6]} 16. Re1 {[%clk 0:02:45.1]} 16... Ng6 {[%clk 0:01:58.2]}
17. g3 {[%clk 0:02:30.1]} 17... f4 {[%clk 0:01:43.9]} 18. g4 {[%clk 0:02:16.1]}
18... f3 {[%clk 0:01:10.3]} 19. Re3 {[%clk 0:02:15.5]} 19... Nh4 {[%clk
0:01:03.9]} 20. Ndxf3 {[%clk 0:02:07.5]} 20... Ng6 {[%clk 0:01:03.6]} 21. Nd2
{[%clk 0:02:04.4]} 21... Bd7 {[%clk 0:00:57.5]} 22. Ndf1 {[%clk 0:02:04.1]}
22... Nf4 {[%clk 0:00:55.2]} 23. a4 {[%clk 0:01:52.1]} 23... a6 {[%clk 0:00:43]}
24. a5 {[%clk 0:01:50.4]} 24... Bc6 {[%clk 0:00:41.5]} 25. Bb3 {[%clk
0:01:29.5]} 25... d5 {[%clk 0:00:35.4]} 26. Ba4 {[%clk 0:01:29.8]} 26... d4
{[%clk 0:00:24.7]} 27. Rf3 {[%clk 0:01:19.7]} 27... dxc3 {[%clk 0:00:24.3]} 28.
bxc3 {[%clk 0:01:17.7]} 28... Bb5 {[%clk 0:00:18.9]} 29. c4 {[%clk 0:01:12.3]}
29... Bxa4 {[%clk 0:00:18.2]} 30. Rxa4 {[%clk 0:01:12.4]} 30... b5 {[%clk
0:00:14.5]} 31. axb6 {[%clk 0:01:00.1]} 31... Qxb6 {[%clk 0:00:15]} 32. Ra1
{[%clk 0:01:00.8]} 32... a5 {[%clk 0:00:14.5]} 33. Ne3 {[%clk 0:01:01.2]} 33...
a4 {[%clk 0:00:14.5]} 34. Nd5 {[%clk 0:01:01.8]} 34... Qb3 {[%clk 0:00:10.4]}
35. Re3 {[%clk 0:00:43.9]} 35... Qxd1+ {[%clk 0:00:06.7]} 36. Rxd1 {[%clk
0:00:44.8]} 36... a3 {[%clk 0:00:06.9]} 37. Ra1 {[%clk 0:00:45.6]} 37... Rfb8
{[%clk 0:00:05.9]} 38. Nc3 {[%clk 0:00:26.4]} 38... Rb3 {[%clk 0:00:04.8]} 39.
Na2 {[%clk 0:00:27.1]} 39... Rxd3 {[%clk 0:00:02.8]} 40. Nf3 {[%clk 0:00:24]}
40... Ra4 {[%clk 0:00:02.7]} 41. Ne1 {[%clk 0:00:22.6]} 41... Rxe3 {[%clk
0:00:02.6]} 42. fxe3 {[%clk 0:00:23.5]} 42... Ne2+ {[%clk 0:00:02.9]} 43. Kf2
{[%clk 0:00:22.3]} 43... Nd4 {[%clk 0:00:03]} 44. exd4 {[%clk 0:00:21.1]} 44...
exd4 {[%clk 0:00:02.8]} 45. Nd3 {[%clk 0:00:15.3]} 45... Rxc4 {[%clk 0:00:02.6]}
46. Nac1 {[%clk 0:00:15.9]} 46... Rc3 {[%clk 0:00:02.7]} 47. Ke2 {[%clk
0:00:11.7]} 47... c4 {[%clk 0:00:03.2]} 48. Kd2 {[%clk 0:00:12.4]} 48... cxd3
{[%clk 0:00:02.9]} 49. Nxd3 {[%clk 0:00:13.3]} 49... Bf8 {[%clk 0:00:03.1]} 50.
Rb1 {[%clk 0:00:11.7]} 50... a2 {[%clk 0:00:03.2]} 51. Ra1 {[%clk 0:00:12.1]}
51... Ra3 {[%clk 0:00:03.8]} 52. Nc1 {[%clk 0:00:12.7]} 52... Bb4+ {[%clk
0:00:03.9]} 53. Kd1 {[%clk 0:00:13.2]} 53... Kg7 {[%clk 0:00:02.7]} 54. Rxa2
{[%clk 0:00:13.5]} 54... Rxa2 {[%clk 0:00:03.2]} 55. Nxa2 {[%clk 0:00:14.4]}
55... Bc5 {[%clk 0:00:02.2]} 56. Nc1 {[%clk 0:00:14.8]} 56... Kf6 {[%clk
0:00:02.6]} 57. Nd3 {[%clk 0:00:15.5]} 57... Bd6 {[%clk 0:00:03.2]} 58. Kc2
{[%clk 0:00:16.2]} 58... Ke6 {[%clk 0:00:03.7]} 59. Kb3 {[%clk 0:00:16.7]} 59...
Bc7 {[%clk 0:00:04.4]} 60. Kb4 {[%clk 0:00:16.4]} 60... Bd6+ {[%clk 0:00:04.6]}
61. Kc4 {[%clk 0:00:16.7]} 61... Be5 {[%clk 0:00:05.3]} 62. Nxe5 {[%clk
0:00:14]} 62... Kxe5 {[%clk 0:00:05.7]} 63. Kd3 {[%clk 0:00:14.7]} 63... Kf4
{[%clk 0:00:05.8]} 64. Kxd4 {[%clk 0:00:14.8]} 64... Kg3 {[%clk 0:00:06.3]} 65.
e5 {[%clk 0:00:14.9]} 65... Kxh3 {[%clk 0:00:06.8]} 66. e6 {[%clk 0:00:15.6]}
66... Kxg4 {[%clk 0:00:07.4]} 67. e7 {[%clk 0:00:15.9]} 67... Kh3 {[%clk
0:00:08.3]} 68. e8=Q {[%clk 0:00:16.3]} 68... g4 {[%clk 0:00:09.2]} 69. Ke3
{[%clk 0:00:16.6]} 69... g3 {[%clk 0:00:10.1]} 70. Kf3 {[%clk 0:00:17]} 70... g2
{[%clk 0:00:10.5]} 71. Qh5# {[%clk 0:00:17]} 1-0

[Event "Late-Titled-Tuesday-Blitz-January-23-2024"]
[Site "Chess.com"]
[Date "2024.01.23"]
[Round "10"]
[White "Grischuk"]
[Black "Njal28"]
[Result "1/2-1/2"]
[WhiteElo "3090"]
[BlackElo "3080"]
[TimeControl "180+1"]
[EndTime "15:53:26 PST"]
[Termination "Game drawn by repetition"]

1. d4 {[%clk 0:03:00.9]} 1... Nf6 {[%clk 0:03:00.2]} 2. Nf3 {[%clk 0:02:56]}
2... d5 {[%clk 0:02:58.8]} 3. Bf4 {[%clk 0:02:55.7]} 3... c5 {[%clk 0:02:54.6]}
4. e3 {[%clk 0:02:55.9]} 4... Nc6 {[%clk 0:02:54]} 5. Nbd2 {[%clk 0:02:56]} 5...
Bg4 {[%clk 0:02:49.8]} 6. c3 {[%clk 0:02:55.8]} 6... e6 {[%clk 0:02:47]} 7. Qb3
{[%clk 0:02:55.9]} 7... Qc8 {[%clk 0:02:46.4]} 8. Nh4 {[%clk 0:02:53.7]} 8...
Bh5 {[%clk 0:02:38.3]} 9. h3 {[%clk 0:02:53.7]} 9... Be7 {[%clk 0:02:29.9]} 10.
g4 {[%clk 0:02:53]} 10... Bg6 {[%clk 0:02:30.6]} 11. Nxg6 {[%clk 0:02:53.1]}
11... hxg6 {[%clk 0:02:31.5]} 12. Be2 {[%clk 0:02:53.7]} 12... Qd7 {[%clk
0:02:17.7]} 13. dxc5 {[%clk 0:02:53.2]} 13... Bxc5 {[%clk 0:02:16.3]} 14. O-O-O
{[%clk 0:02:52.4]} 14... Bd6 {[%clk 0:01:45.8]} 15. Bxd6 {[%clk 0:02:22.6]}
15... Qxd6 {[%clk 0:01:46]} 16. Kb1 {[%clk 0:02:12.8]} 16... O-O-O {[%clk
0:01:39.2]} 17. h4 {[%clk 0:01:31.8]} 17... Kb8 {[%clk 0:01:39.2]} 18. a3 {[%clk
0:01:26.8]} 18... Qc7 {[%clk 0:01:33.7]} 19. Qc2 {[%clk 0:01:19.2]} 19... Rc8
{[%clk 0:01:24.5]} 20. Rc1 {[%clk 0:01:14.6]} 20... Qe7 {[%clk 0:00:55.7]} 21.
Qd3 {[%clk 0:00:46.1]} 21... Nd7 {[%clk 0:00:52.3]} 22. h5 {[%clk 0:00:45.8]}
22... gxh5 {[%clk 0:00:48.2]} 23. gxh5 {[%clk 0:00:46.7]} 23... Nde5 {[%clk
0:00:45.8]} 24. Qb5 {[%clk 0:00:44]} 24... a6 {[%clk 0:00:35.1]} 25. Qa4 {[%clk
0:00:44]} 25... Qf6 {[%clk 0:00:21.6]} 26. Qf4 {[%clk 0:00:28.7]} 26... Qxf4
{[%clk 0:00:20.2]} 27. exf4 {[%clk 0:00:29.6]} 27... Nd7 {[%clk 0:00:21.1]} 28.
Rcg1 {[%clk 0:00:29.6]} 28... Rcg8 {[%clk 0:00:21.7]} 29. Rg5 {[%clk 0:00:25.7]}
29... Nf6 {[%clk 0:00:18.8]} 30. Rhg1 {[%clk 0:00:24.7]} 30... Rh7 {[%clk
0:00:16.5]} 31. Kc2 {[%clk 0:00:20.7]} 31... Ne7 {[%clk 0:00:11.1]} 32. Bd3
{[%clk 0:00:18]} 32... Rxh5 {[%clk 0:00:10.7]} 33. Rxg7 {[%clk 0:00:18.5]} 33...
Rf8 {[%clk 0:00:08.4]} 34. Nf3 {[%clk 0:00:18.1]} 34... Nc6 {[%clk 0:00:02.4]}
35. R1g5 {[%clk 0:00:14.3]} 35... Rh6 {[%clk 0:00:03]} 36. Ne5 {[%clk
0:00:10.9]} 36... Nxe5 {[%clk 0:00:03.6]} 37. fxe5 {[%clk 0:00:11.8]} 37... Nd7
{[%clk 0:00:04.2]} 38. f4 {[%clk 0:00:12]} 38... Nc5 {[%clk 0:00:04.6]} 39. b4
{[%clk 0:00:09]} 39... Rh2+ {[%clk 0:00:04.9]} 40. Rg2 {[%clk 0:00:08.4]} 40...
Rxg2+ {[%clk 0:00:05.6]} 41. Rxg2 {[%clk 0:00:08.7]} 41... Nxd3 {[%clk
0:00:04.4]} 42. Kxd3 {[%clk 0:00:09.6]} 42... Kc7 {[%clk 0:00:05.2]} 43. c4
{[%clk 0:00:08.9]} 43... dxc4+ {[%clk 0:00:02.9]} 44. Kxc4 {[%clk 0:00:09.8]}
44... Kd7 {[%clk 0:00:02.3]} 45. Rd2+ {[%clk 0:00:09.4]} 45... Kc6 {[%clk
0:00:02.5]} 46. Rd6+ {[%clk 0:00:08.2]} 46... Kc7 {[%clk 0:00:03.2]} 47. f5
{[%clk 0:00:03.3]} 47... Re8 {[%clk 0:00:01.7]} 48. fxe6 {[%clk 0:00:02.9]}
48... fxe6 {[%clk 0:00:02.6]} 49. a4 {[%clk 0:00:02.6]} 49... Re7 {[%clk
0:00:02.9]} 50. a5 {[%clk 0:00:02.6]} 50... Re8 {[%clk 0:00:03.3]} 51. b5 {[%clk
0:00:02.8]} 51... axb5+ {[%clk 0:00:04.2]} 52. Kxb5 {[%clk 0:00:03.6]} 52... Re7
{[%clk 0:00:04.5]} 53. Kc5 {[%clk 0:00:03.7]} 53... Re8 {[%clk 0:00:04.7]} 54.
a6 {[%clk 0:00:04.2]} 54... bxa6 {[%clk 0:00:04.6]} 55. Rxa6 {[%clk 0:00:05.1]}
55... Rb8 {[%clk 0:00:02.3]} 56. Ra7+ {[%clk 0:00:04.4]} 56... Kd8 {[%clk
0:00:02.8]} 57. Kc6 {[%clk 0:00:04.1]} 57... Ke8 {[%clk 0:00:02.6]} 58. Rh7
{[%clk 0:00:02.7]} 58... Rb1 {[%clk 0:00:01.9]} 59. Rh6 {[%clk 0:00:02.7]} 59...
Ke7 {[%clk 0:00:02.2]} 60. Rh7+ {[%clk 0:00:03.1]} 60... Ke8 {[%clk 0:00:02.9]}
61. Rh6 {[%clk 0:00:03.6]} 61... Ke7 {[%clk 0:00:03.3]} 62. Rh7+ {[%clk
0:00:04.1]} 62... Ke8 {[%clk 0:00:03.9]} 1/2-1/2